fUST/lending_fUST_20241216
["ID","MTS","AMOUNT","RATE_DAILY","PERIOD"]
[345547683,1734329432776,-501.40067827,0.00027397,7]
[345547685,1734329432785,-500.0,0.00027397,7]
[345547687,1734329432795,-500.0,0.00027397,7]
[345547689,1734329432804,-166.38671458,0.00027397,7]
[345547806,1734329438013,-333.61328542,0.00027397,7]
[345547808,1734329438023,-500.0,0.00027397,7]
[345547810,1734329438032,-599.60741935,0.00027397,7]
[345547812,1734329438042,-298.23620229,0.00027397,7]
[345548043,1734329442870,-221.27936858,0.00027397,7]
[345548044,1734329442880,-501.42176119,0.00027397,7]
[345548045,1734329442890,-500.0,0.00027397,7]
[345548046,1734329442899,-500.0,0.00027397,7]
[345548047,1734329442908,-500.0,0.00027397,7]
[345548048,1734329442918,-168.0,0.00027397,7]
[345548049,1734329442927,-1914.31674228,0.00027397,2]
[345548050,1734329442939,-314.01325772,0.00027397,2]
[345548051,1734329442948,-517.37662677,0.00027397,7]
[345548052,1734329442957,-500.0,0.00027397,7]
[345548053,1734329442966,-500.0,0.00027397,7]
[345548054,1734329442975,-371.94650495,0.00027397,7]
[345548055,1734329442987,-128.05349505,0.00027397,7]
[345548056,1734329442997,-500.0,0.00027397,7]
[345548057,1734329443006,-500.0,0.00027397,7]
[345548058,1734329443015,-277.33063047,0.00027397,7]
[345548082,1734329828120,-152.34,0.000284,31]
[345548083,1734329828149,-152.34,0.000284,31]
[345548084,1734329828174,-152.34,0.000284,31]
[345548085,1734329828201,-152.34,0.000284,31]
[345548086,1734329828226,-152.34,0.000284,31]
[345548087,1734329828250,-152.34,0.000284,31]
[345548088,1734329828276,-152.34,0.000284,31]
[345548089,1734329828301,-152.34,0.000284,31]
[345548090,1734329828325,-152.34,0.000284,31]
[345548091,1734329828350,-152.34,0.000284,31]
[345548092,1734329828374,-152.34,0.000284,31]
[345548093,1734329828400,-152.34,0.000284,31]
[345548094,1734329828582,-500.0,0.00027945,30]
[345548095,1734329828604,-256.17394865,0.00027945,30]
[345548096,1734329828627,-500.0,0.00027945,30]
[345548097,1734329828648,-26.03048479,0.00027945,30]
[345548098,1734329828693,-126.51025181,0.00027945,30]
[345548099,1734329828713,-500.0,0.00027945,30]
[345548100,1734329828735,-500.0,0.00027945,30]
[345548101,1734329828755,-281.84631583,0.00027945,30]
[345548102,1734329845572,500.0,0.00027945,30]
[345548103,1734329861893,500.0,0.00027945,30]
[345548105,1734329978548,500.0,0.00027945,30]
[345548106,1734329983626,500.0,0.00027945,30]
[345548108,1734330234765,175.351477,0.00013973,2]
[345548109,1734330236895,500.0,0.00027945,30]
[345548111,1734330241394,205.54456548,0.00027945,30]
[345548112,1734330241415,294.45543452,0.00027945,30]
[345548117,1734330387893,936.0,0.000279,30]
[345548118,1734330391433,198.74880277,0.00020222,2]
[345548119,1734330393946,51.74899892,0.00027945,30]
[345548179,1734330632177,-175.351477,0.00020447,2]
[345548180,1734330632187,-300.0,0.00024999,2]
[345548181,1734330632196,-300.0,0.00024999,2]
[345548182,1734330632206,-11151.25711497,0.00025,2]
[345548183,1734330632215,-176.24522,0.00026185,2]
[345548184,1734330632225,-2456.85153588,0.000265,2]
[345548185,1734330632234,-66966.77600136,0.000265,2]
[345548186,1734330632243,-70268.27362048,0.000265,2]
[345548187,1734330632252,-865.39637629,0.000265,2]
[345548188,1734330632261,-596.304,0.000266,2]
[345548189,1734330632271,-166.0,0.00026672,3]
[345548190,1734330632280,-167.12,0.00026672,3]
[345548191,1734330632382,-500.0,0.00026673,2]
[345548192,1734330632392,-115434.72146085,0.000267,7]
[345548193,1734330632402,-153.0,0.00026767,2]
[345548194,1734330632411,-153.0,0.00026767,2]
[345548195,1734330632423,-153.0,0.00026767,2]
[345548196,1734330632432,-175.351477,0.00026921,2]
[345548197,1734330632441,-3257.6933752,0.0002698,2]
[345548198,1734330632450,-865.39637627,0.00026995,2]
[345548199,1734330632460,-305.0,0.00027,2]
[345548200,1734330632469,-30017.15230475,0.00027,3]
[345548201,1734330632478,-5716.69858632,0.00027,5]
[345548202,1734330632488,-153.0,0.00027,2]
[345548203,1734330632497,-420.0,0.00027082,2]
[345548204,1734330632507,-200073.79750217,0.000272,5]
[345548205,1734330632517,-1077.0434334,0.00027221,2]
[345548206,1734330632526,-2422.33901988,0.00027232,2]
[345548207,1734330632535,-1953.20724439,0.00027297,2]
[345548208,1734330632544,-209.13900556,0.000273,7]
[345548209,1734330632554,-600.0,0.00027353,2]
[345548210,1734330632564,-500.0,0.00027373,2]
[345548211,1734330632573,-500.0,0.00027397,7]
[345548212,1734330632582,-500.0,0.00027397,7]
[345548213,1734330632591,-500.0,0.00027397,7]
[345548214,1734330632601,-500.0,0.00027397,7]
[345548215,1734330632611,-165.66542182,0.00027397,7]
[345548216,1734330632621,-500.0,0.00027397,7]
[345548217,1734330632631,-500.0,0.00027397,7]
[345548218,1734330632640,-502.10204362,0.00027397,7]
[345548219,1734330632649,-500.0,0.00027397,7]
[345548220,1734330632659,-500.0,0.00027397,7]
[345548221,1734330632671,-500.0,0.00027397,7]
[345548222,1734330632680,-503.64487229,0.00027397,7]
[345548223,1734330632690,-500.0,0.00027397,7]
[345548224,1734330632710,-500.38492864,0.00027397,2]
[345548225,1734330632720,-500.0,0.00027397,7]
[345548226,1734330632730,-502.40881107,0.00027397,7]
[345548227,1734330632740,-500.0,0.00027397,7]
[345548228,1734330632751,-500.0,0.00027397,7]
[345548229,1734330632761,-501.70061613,0.00027397,7]
[345548230,1734330632771,-500.0,0.00027397,7]
[345548231,1734330632781,-505.47923096,0.00027397,7]
[345548232,1734330632791,-500.0,0.00027397,7]
[345548233,1734330632801,-509.73882818,0.00027397,7]
[345548234,1734330632812,-504.81937639,0.00027397,7]
[345548235,1734330632822,-529.3610101,0.00027397,7]
[345548236,1734330632832,-509.75349106,0.00027397,7]
[345548237,1734330632842,-508.1181696,0.00027397,7]
[345548238,1734330632852,-500.0,0.00027397,7]
[345548239,1734330632862,-500.0,0.00027397,7]
[345548240,1734330632871,-500.0,0.00027397,7]
[345548241,1734330632881,-500.0,0.00027397,7]
[345548242,1734330632891,-612.55144436,0.00027397,7]
[345548243,1734330632902,-500.0,0.00027397,7]
[345548244,1734330632912,-502.2816151,0.00027397,7]
[345548245,1734330632923,-501.28668324,0.00027397,7]
[345548246,1734330632933,-500.0,0.00027397,7]
[345548247,1734330632943,-500.0,0.00027397,7]
[345548248,1734330632952,-500.0,0.00027397,7]
[345548249,1734330632962,-505.1567009,0.00027397,7]
[345548250,1734330632972,-504.7159423,0.00027397,7]
[345548251,1734330632982,-500.0,0.00027397,7]
[345548252,1734330632993,-504.07667657,0.00027397,7]
[345548253,1734330633003,-501.12807712,0.00027397,7]
[345548254,1734330633013,-502.38289523,0.00027397,7]
[345548255,1734330633023,-502.6126415,0.00027397,7]
[345548256,1734330633032,-502.23468975,0.00027397,7]
[345548257,1734330633042,-168.0,0.00027397,7]
[345548258,1734330633053,-502.62402525,0.00027397,7]
[345548259,1734330633069,-502.60549531,0.00027397,7]
[345548260,1734330633080,-2338.05,0.00027397,2]
[345548261,1734330633090,-502.30082414,0.00027397,7]
[345548262,1734330633102,-500.0,0.00027397,7]
[345548263,1734330633112,-505.16453108,0.00027397,7]
[345548264,1734330633122,-507.94801832,0.00027397,7]
[345548265,1734330633132,-501.89897822,0.00027397,7]
[345548266,1734330633143,-502.63779928,0.00027397,7]
[345548267,1734330633152,-506.55125742,0.00027397,7]
[345548268,1734330633162,-504.23845061,0.00027397,7]
[345548269,1734330633172,-503.56348278,0.00027397,7]
[345548270,1734330633182,-503.58147177,0.00027397,7]
[345548272,1734330633192,-505.38685492,0.00027397,7]
[345548273,1734330633202,-501.74049719,0.00027397,7]
[345548275,1734330633212,-500.57159208,0.00027397,7]
[345548276,1734330633222,-505.44054422,0.00027397,7]
[345548278,1734330633232,-500.0,0.00027397,7]
[345548279,1734330633242,-500.0,0.00027397,7]
[345548280,1734330633251,-500.0,0.00027397,7]
[345548282,1734330633261,-503.3912217,0.00027397,7]
[345548283,1734330633271,-500.0,0.00027397,7]
[345548285,1734330633281,-500.0,0.00027397,7]
[345548286,1734330633291,-281.62180116,0.00027397,7]
[345548288,1734330633300,-500.0,0.00027397,7]
[345548289,1734330633310,-500.0,0.00027397,7]
[345548290,1734330633320,-315.91856675,0.00027397,7]
[345548292,1734330633330,-500.0,0.00027397,7]
[345548293,1734330633339,-499.65854751,0.00027397,7]
[345548295,1734330633349,-627.07539368,0.00027397,7]
[345548296,1734330633358,-509.81021478,0.00027397,7]
[345548298,1734330633368,-500.0,0.00027397,7]
[345548299,1734330633379,-188.66672715,0.00027397,7]
[345548301,1734330633389,-500.0,0.00027397,7]
[345548302,1734330633399,-503.72622432,0.00027397,7]
[345548303,1734330633409,-500.0,0.00027397,7]
[345548305,1734330633420,-502.86741157,0.00027397,7]
[345548306,1734330633430,-500.0,0.00027397,7]
[345548308,1734330633439,-500.0,0.00027397,7]
[345548309,1734330633449,-500.0,0.00027397,7]
[345548311,1734330633458,-582.99,0.00027397,7]
[345548312,1734330633467,-227.57025515,0.00027397,7]
[345548313,1734330633477,-500.0,0.00027397,7]
[345548315,1734330633487,-500.0,0.00027397,7]
[345548316,1734330633498,-501.14957545,0.00027397,7]
[345548318,1734330633507,-506.81841463,0.00027397,7]
[345548319,1734330633516,-500.0,0.00027397,7]
[345548320,1734330633526,-501.65514152,0.00027397,7]
[345548322,1734330633535,-502.7328526,0.00027397,7]
[345548324,1734330633548,-229.11721888,0.00027397,7]
[345548325,1734330633558,-500.0,0.00027397,7]
[345548326,1734330633567,-500.0,0.00027397,7]
[345548328,1734330633577,-500.0,0.00027397,7]
[345548329,1734330633587,-501.15342139,0.00027397,7]
[345548331,1734330633597,-500.0,0.00027397,7]
[345548332,1734330633607,-506.03387085,0.00027397,7]
[345548334,1734330633618,-500.0,0.00027397,7]
[345548335,1734330633627,-575.98209972,0.00027397,7]
[345548337,1734330633637,-500.0,0.00027397,7]
[345548338,1734330633647,-500.0,0.00027397,7]
[345548340,1734330633657,-500.0,0.00027397,7]
[345548341,1734330633667,-500.0,0.00027397,7]
[345548342,1734330633677,-500.0,0.00027397,7]
[345548344,1734330633687,-500.0,0.00027397,7]
[345548345,1734330633697,-500.0,0.00027397,7]
[345548346,1734330633707,-500.74514755,0.00027397,7]
[345548348,1734330633716,-411.62151465,0.00027397,7]
[345548349,1734330633726,-500.0,0.00027397,7]
[345548351,1734330633736,-500.0,0.00027397,7]
[345548352,1734330633746,-501.51146595,0.00027397,7]
[345548354,1734330633757,-500.0,0.00027397,7]
[345548355,1734330633767,-500.0,0.00027397,7]
[345548357,1734330633776,-501.79564149,0.00027397,7]
[345548358,1734330633786,-500.0,0.00027397,7]
[345548359,1734330633796,-502.53004187,0.00027397,7]
[345548361,1734330633806,-500.0,0.00027397,7]
[345548362,1734330633816,-500.0,0.00027397,7]
[345548364,1734330633825,-501.65462542,0.00027397,7]
[345548365,1734330633836,-500.0,0.00027397,7]
[345548367,1734330633846,-500.98404456,0.00027397,7]
[345548368,1734330633855,-539.10103757,0.00027397,7]
[345548370,1734330633865,-500.0,0.00027397,7]
[345548371,1734330633874,-500.0,0.00027397,7]
[345548372,1734330633884,-502.53068108,0.00027397,7]
[345548374,1734330633894,-500.0,0.00027397,7]
[345548375,1734330633903,-501.84630422,0.00027397,7]
[345548377,1734330633914,-500.0,0.00027397,7]
[345548378,1734330633925,-501.2076488,0.00027397,7]
[345548379,1734330633936,-500.0,0.00027397,7]
[345548381,1734330633946,-425.22870184,0.00027397,7]
[345548382,1734330633956,-488.87686724,0.00027397,7]
[345548384,1734330633966,-500.0,0.00027397,7]
[345548385,1734330633976,-500.0,0.00027397,7]
[345548387,1734330633986,-491.52401525,0.00027397,7]
[345548388,1734330633997,-500.0,0.00027397,7]
[345548390,1734330634007,-500.0,0.00027397,7]
[345548391,1734330634017,-501.2055227,0.00027397,7]
[345548392,1734330634027,-507.95315676,0.00027397,7]
[345548394,1734330634037,-500.0,0.00027397,7]
[345548395,1734330634047,-500.0,0.00027397,7]
[345548397,1734330634058,-628.29501065,0.00027397,7]
[345548398,1734330634071,-503.98940354,0.00027397,7]
[345548400,1734330634081,-500.0,0.00027397,7]
[345548401,1734330634090,-503.62042531,0.00027397,7]
[345548402,1734330634100,-500.0,0.00027397,7]
[345548404,1734330634111,-500.0,0.00027397,7]
[345548405,1734330634121,-503.62184828,0.00027397,7]
[345548407,1734330634130,-500.0,0.00027397,7]
[345548408,1734330634141,-502.37854492,0.00027397,7]
[345548410,1734330634150,-500.0,0.00027397,7]
[345548411,1734330634160,-506.22579799,0.00027397,7]
[345548412,1734330634170,-151.0,0.00027397,7]
[345548414,1734330634179,-509.93032164,0.00027397,7]
[345548415,1734330634189,-500.0,0.00027397,7]
[345548417,1734330634200,-151.0,0.00027397,7]
[345548418,1734330634210,-500.0,0.00027397,7]
[345548420,1734330634220,-502.73270547,0.00027397,7]
[345548421,1734330634230,-505.04767068,0.00027397,7]
[345548423,1734330634239,-500.0,0.00027397,7]
[345548424,1734330634249,-151.0,0.00027397,7]
[345548425,1734330634260,-507.20653829,0.00027397,7]
[345548427,1734330634270,-500.0,0.00027397,7]
[345548428,1734330634280,-500.0,0.00027397,7]
[345548430,1734330634290,-502.6579722,0.00027397,7]
[345548431,1734330634299,-500.0,0.00027397,7]
[345548433,1734330634309,-500.0,0.00027397,7]
[345548434,1734330634319,-502.65494426,0.00027397,7]
[345548435,1734330634329,-500.0,0.00027397,7]
[345548437,1734330634339,-196.20937865,0.00027397,7]
[345548438,1734330634350,-500.0,0.00027397,7]
[345548440,1734330634360,-510.09281298,0.00027397,7]
[345548441,1734330634370,-500.0,0.00027397,7]
[345548443,1734330634380,-507.5613979,0.00027397,7]
[345548444,1734330634390,-68254.04,0.00027397,7]
[345548445,1734330634400,-503.5881907,0.00027397,7]
[345548447,1734330634410,-1589.14,0.00027397,7]
[345548448,1734330634421,-500.0,0.00027397,7]
[345548450,1734330634431,-500.0,0.00027397,2]
[345548451,1734330634441,-500.0,0.00027397,7]
[345548457,1734330634451,-500.0,0.00027397,7]
[345548458,1734330634560,-504.25022879,0.00027397,7]
[345548460,1734330634570,-500.0,0.00027397,7]
[345548461,1734330634579,-385.31930586,0.00027397,7]
[345548463,1734330634589,-835.38,0.00027397,7]
[345548464,1734330634598,-503.28827737,0.00027397,7]
[345548465,1734330634608,-500.0,0.00027397,7]
[345548467,1734330634617,-500.0,0.00027397,7]
[345548468,1734330634627,-295.79150136,0.00027397,7]
[345548470,1734330634638,-273.59105054,0.00027397,2]
[345548471,1734330634648,-408.065282,0.00027397,7]
[345548473,1734330634657,-506.19097359,0.00027397,7]
[345548474,1734330634666,-408.065282,0.00027397,7]
[345548475,1734330634677,-500.0,0.00027397,7]
[345548477,1734330634688,-500.0,0.00027397,7]
[345548478,1734330634698,-507.89115124,0.00027397,7]
[345548480,1734330634707,-261.62976515,0.00027397,7]
[345548481,1734330634717,-510.39780587,0.00027397,7]
[345548482,1734330634727,-500.0,0.00027397,7]
[345548484,1734330634737,-196.22289417,0.00027397,7]
[345548485,1734330634747,-500.0,0.00027397,7]
[345548487,1734330634756,-500.0,0.00027397,7]
[345548488,1734330634766,-501.44250337,0.00027397,7]
[345548489,1734330634776,-529.51124773,0.00027397,7]
[345548491,1734330634785,-500.0,0.00027397,7]
[345548492,1734330634795,-505.45165393,0.00027397,7]
[345548494,1734330634804,-500.0,0.00027397,7]
[345548495,1734330634814,-500.0,0.00027397,7]
[345548497,1734330634824,-509.36173754,0.00027397,7]
[345548498,1734330634834,-890.41,0.00027397,7]
[345548499,1734330634844,-500.0,0.00027397,7]
[345548501,1734330634853,-500.0,0.00027397,7]
[345548502,1734330634864,-500.0,0.00027397,7]
[345548504,1734330634873,-500.0,0.00027397,7]
[345548506,1734330634895,-1064.51,0.00027397,7]
[345548507,1734330634906,-500.0,0.00027397,7]
[345548508,1734330634916,-512.24222871,0.00027397,7]
[345548510,1734330634928,-505.78228069,0.00027397,7]
[345548511,1734330634938,-500.0,0.00027397,7]
[345548513,1734330634950,-500.0,0.00027397,7]
[345548514,1734330634960,-500.0,0.00027397,7]
[345548516,1734330634970,-1771.85,0.00027397,7]
[345548517,1734330634980,-268.77703896,0.00027397,7]
[345548519,1734330634990,-195.68453638,0.00027397,7]
[345548520,1734330635000,-500.0,0.00027397,7]
[345548521,1734330635010,-500.0,0.00027397,7]
[345548523,1734330635020,-595.96,0.00027397,7]
[345548524,1734330635030,-500.0,0.00027397,7]
[345548526,1734330635039,-501.44422984,0.00027397,7]
[345548527,1734330635051,-500.0,0.00027397,7]
[345548529,1734330635063,-506.13897432,0.00027397,7]
[345548530,1734330635073,-500.0,0.00027397,7]
[345548531,1734330635084,-500.0,0.00027397,7]
[345548533,1734330635093,-510.68901353,0.00027397,7]
[345548534,1734330635103,-500.0,0.00027397,7]
[345548535,1734330635113,-500.0,0.00027397,7]
[345548536,1734330635123,-500.0,0.00027397,7]
[345548537,1734330635132,-500.0,0.00027397,7]
[345548538,1734330635143,-508.23905114,0.00027397,7]
[345548539,1734330635153,-500.0,0.00027397,7]
[345548540,1734330635162,-695.01,0.00027397,5]
[345548541,1734330635172,-500.0,0.00027397,7]
[345548542,1734330635181,-167.20725077,0.00027397,7]
[345548543,1734330635191,-1000.0,0.00027397,2]
[345548544,1734330635200,-500.0,0.00027397,7]
[345548545,1734330635210,-505.73043511,0.00027397,7]
[345548546,1734330635220,-500.0,0.00027397,7]
[345548547,1734330635230,-500.0,0.00027397,7]
[345548548,1734330635239,-151.0,0.00027397,7]
[345548549,1734330635250,-151.0,0.00027397,7]
[345548551,1734330635260,-500.47449633,0.00027397,7]
[345548552,1734330635270,-336.869161,0.00027397,7]
[345548554,1734330635280,-336.869161,0.00027397,7]
[345548555,1734330635290,-510.44211641,0.00027397,7]
[345548556,1734330635299,-336.869161,0.00027397,7]
[345548558,1734330635309,-500.0,0.00027397,7]
[345548559,1734330635318,-336.869161,0.00027397,7]
[345548561,1734330635327,-336.869161,0.00027397,7]
[345548562,1734330635337,-336.869161,0.00027397,7]
[345548564,1734330635346,-500.0,0.00027397,7]
[345548565,1734330635356,-500.0,0.00027397,7]
[345548566,1734330635366,-503.05047602,0.00027397,7]
[345548568,1734330635376,-500.0,0.00027397,2]
[345548569,1734330635387,-2859.63,0.00027397,7]
[345548571,1734330635397,-157.82033491,0.00027397,2]
[345548572,1734330635407,-5182.0944052,0.00027397,2]
[345548574,1734330635417,-500.13863086,0.00027472,8]
[345548575,1734330635427,-2369.0,0.00027475,2]
[345548576,1734330635436,-3257.6933752,0.0002748,2]
[345548578,1734330635446,-865.39637627,0.00027489,2]
[345548579,1734330635455,-420.0,0.00027499,2]
[345548581,1734330635465,-6288.82381808,0.000275,2]
[345548582,1734330635475,-151.0,0.00027511,6]
[345548584,1734330635485,-1953.20724434,0.00027593,2]
[345548585,1734330635495,-157.82033491,0.00027616,2]
[345548586,1734330635505,-600.0,0.00027638,2]
[345548588,1734330635515,-500.0,0.00027671,7]
[345548589,1734330635525,-517.26830468,0.00027671,7]
[345548591,1734330635535,-500.0,0.00027671,7]
[345548592,1734330635545,-500.0,0.00027671,7]
[345548594,1734330635554,-500.0,0.00027671,7]
[345548595,1734330635564,-505.19491867,0.00027671,7]
[345548597,1734330635574,-203.57878873,0.00027671,7]
[345548598,1734330635583,-504.23487329,0.00027671,7]
[345548599,1734330635593,-500.0,0.00027671,7]
[345548601,1734330635603,-504.5338189,0.00027671,7]
[345548602,1734330635613,-500.0,0.00027671,7]
[345548603,1734330635623,-500.0,0.00027671,7]
[345548605,1734330635633,-500.0,0.00027671,7]
[345548606,1734330635643,-500.0,0.00027671,7]
[345548608,1734330635653,-509.12446409,0.00027671,7]
[345548609,1734330635663,-521.18370466,0.00027671,7]
[345548611,1734330635674,-209.87361148,0.00027671,7]
[345548612,1734330635684,-500.0,0.00027671,7]
[345548614,1734330635694,-500.0,0.00027671,7]
[345548615,1734330635704,-506.33796315,0.00027671,7]
[345548616,1734330635713,-151.0,0.00027671,7]
[345548618,1734330635724,-168.0,0.00027671,7]
[345548619,1734330635734,-164.131626,0.00027671,7]
[345548621,1734330635745,-2338.05,0.00027671,2]
[345548622,1734330635754,-365.29891626,0.00027671,7]
[345548624,1734330635764,-483.19518879,0.00027671,7]
[345548625,1734330635774,-502.63085816,0.00027671,7]
[345548626,1734330635783,-500.0,0.00027671,7]
[345548628,1734330635793,-515.27627266,0.00027671,7]
[345548629,1734330635802,-507.07601276,0.00027671,7]
[345548631,1734330635812,-502.51580994,0.00027671,7]
[345548632,1734330635822,-505.1671724,0.00027671,7]
[345548633,1734330635833,-500.0,0.00027671,7]
[345548635,1734330635842,-503.18730105,0.00027671,7]
[345548636,1734330635852,-151.0,0.00027671,7]
[345548638,1734330635861,-500.0,0.00027671,7]
[345548639,1734330635871,-219.14568439,0.00027671,7]
[345548641,1734330635880,-582.99,0.00027671,7]
[345548642,1734330635890,-151.0,0.00027671,7]
[345548643,1734330635900,-506.29351244,0.00027671,7]
[345548645,1734330635910,-161.064489,0.00027671,7]
[345548646,1734330635920,-503.9768528,0.00027671,7]
[345548648,1734330635939,-161.064489,0.00027671,7]
[345548649,1734330635949,-151.0,0.00027671,7]
[345548650,1734330635958,-503.79040515,0.00027671,7]
[345548652,1734330635968,-506.7638453,0.00027671,7]
[345548653,1734330635978,-500.0,0.00027671,7]
[345548655,1734330635988,-504.0577385,0.00027671,7]
[345548656,1734330635999,-504.00559524,0.00027671,7]
[345548657,1734330636009,-500.0,0.00027671,7]
[345548659,1734330636018,-500.0,0.00027671,7]
[345548660,1734330636028,-187.36249707,0.00027671,7]
[345548662,1734330636038,-500.0,0.00027671,7]
[345548663,1734330636048,-500.0,0.00027671,7]
[345548665,1734330636059,-500.0,0.00027671,7]
[345548666,1734330636071,-304.90779867,0.00027671,7]
[345548667,1734330636081,-500.0,0.00027671,7]
[345548669,1734330636090,-345.048343,0.00027671,7]
[345548670,1734330636100,-345.048343,0.00027671,7]
[345548672,1734330636110,-308.60991339,0.00027671,7]
[345548673,1734330636120,-345.048343,0.00027671,7]
[345548674,1734330636130,-345.048343,0.00027671,7]
[345548676,1734330636142,-504.10490195,0.00027671,7]
[345548677,1734330636152,-500.0,0.00027671,7]
[345548679,1734330636161,-500.0,0.00027671,7]
[345548680,1734330636171,-500.0,0.00027671,7]
[345548682,1734330636181,-500.0,0.00027671,7]
[345548683,1734330636195,-500.0,0.00027671,7]
[345548684,1734330636204,-500.0,0.00027671,7]
[345548686,1734330636217,-500.0,0.00027671,7]
[345548687,1734330636228,-561.74281175,0.00027671,7]
[345548688,1734330636240,-519.72591263,0.00027671,7]
[345548690,1734330636250,-151.0,0.00027671,7]
[345548691,1734330636260,-151.0,0.00027671,7]
[345548693,1734330636270,-500.0,0.00027671,7]
[345548694,1734330636280,-500.0,0.00027671,7]
[345548695,1734330636290,-502.7848892,0.00027671,7]
[345548697,1734330636299,-500.0,0.00027671,7]
[345548698,1734330636309,-500.0,0.00027671,7]
[345548700,1734330636318,-374.76403359,0.00027671,7]
[345548701,1734330636328,-500.0,0.00027671,7]
[345548702,1734330636338,-151.0,0.00027671,7]
[345548704,1734330636347,-151.0,0.00027671,7]
[345548705,1734330636357,-506.95449893,0.00027671,7]
[345548706,1734330636366,-500.0,0.00027671,7]
[345548708,1734330636375,-509.8362244,0.00027671,7]
[345548709,1734330636384,-500.0,0.00027671,7]
[345548711,1734330636393,-500.0,0.00027671,7]
[345548712,1734330636402,-154.773683,0.00027671,7]
[345548713,1734330636411,-506.2770971,0.00027671,7]
[345548715,1734330636423,-151.0,0.00027671,7]
[345548716,1734330636440,-500.0,0.00027671,7]
[345548718,1734330636450,-500.0,0.00027671,7]
[345548719,1734330636459,-151.0,0.00027671,7]
[345548720,1734330636469,-502.8101452,0.00027671,7]
[345548725,1734330636561,-500.0,0.00027671,7]
[345548726,1734330636571,-507.71909494,0.00027671,7]
[345548727,1734330636580,-505.48390917,0.00027671,7]
[345548729,1734330636589,-500.0,0.00027671,7]
[345548730,1734330636599,-500.0,0.00027671,7]
[345548732,1734330636608,-5105.44636908,0.00027671,7]
[345548736,1734330636695,-1050.9,0.00027671,7]
[345548801,1734330638193,-685.63485958,0.00027199,2]
[345548802,1734330638202,-392.47309542,0.00027199,2]
[345548809,1734330638340,-107.52690458,0.00027199,2]
[345548810,1734330638349,-500.0,0.00027199,2]
[345548812,1734330638359,-685.63485958,0.00027199,2]
[345548813,1734330638368,-151.0,0.00027397,7]
[345548815,1734330638377,-151.0,0.00027397,7]
[345548816,1734330638387,-151.0,0.00027397,7]
[345548817,1734330638396,-151.0,0.00027397,7]
[345548819,1734330638404,-151.0,0.00027397,7]
[345548820,1734330638413,-151.0,0.00027397,7]
[345548822,1734330638424,-1522.92,0.00027397,7]
[345548823,1734330638433,-2154.0,0.00027475,2]
[345548824,1734330638442,-533.0,0.00027475,2]
[345548826,1734330638451,-62097.69363092,0.00027671,7]
[345548827,1734330638461,-500.0,0.00027671,7]
[345548829,1734330638470,-500.0,0.00027671,2]
[345548830,1734330638479,-500.0,0.00027671,7]
[345548831,1734330638488,-500.0,0.00027671,7]
[345548833,1734330638497,-500.0,0.00027671,7]
[345548834,1734330638506,-151.0,0.00027671,7]
[345548836,1734330638515,-151.0,0.00027671,7]
[345548837,1734330638524,-151.0,0.00027671,7]
[345548838,1734330638533,-835.38,0.00027671,7]
[345548840,1734330638543,-500.0,0.00027671,7]
[345548841,1734330638552,-500.0,0.00027671,7]
[345548843,1734330638561,-241.037004,0.00027671,7]
[345548844,1734330638570,-241.037004,0.00027671,7]
[345548845,1734330638579,-408.065282,0.00027671,7]